bitfinex/quotes_SOLUSD_20250806
["timestamp","ask_amount","ask_price","bid_price","bid_amount"]
[1754511816552,0.03,168.78,168.77,0.5567213]
[1754511817062,0.03,168.78,168.76,5.98557478]
[1754511817861,3.96505734,168.78,168.76,5.98557478]
[1754511818173,0.03,168.78,168.76,5.98557478]
[1754511818385,3.96505734,168.78,168.76,5.98557478]
[1754511818571,3.96505734,168.78,168.76,0.76]
[1754511818880,0.03,168.78,168.76,0.76]
[1754511820580,0.03,168.78,168.76,6.68536877]
[1754511824886,3.96505734,168.78,168.76,6.68536877]
[1754511826262,4.64505734,168.78,168.76,5.98536877]
[1754511826461,44.99505734,168.77,168.76,0.06]
[1754511826661,45.67505734,168.77,168.76,0.06]
[1754511827363,49.6611139,168.77,168.76,0.06]
[1754511831498,55.58633757,168.77,168.76,0.06]
[1754511831905,49.6611139,168.77,168.76,0.06]
[1754511832495,55.58633757,168.77,168.76,0.06]
[1754511841616,60.57593671,168.77,168.76,0.06]
[1754511844593,14.52633757,168.77,168.76,0.06]
[1754511844794,55.60633757,168.77,168.76,0.06]
[1754511845723,9.91128023,168.77,168.76,0.06]
[1754511845894,54.92633757,168.77,168.76,0.06]
[1754511850211,54.92633757,168.77,168.76,0.74]
[1754511850421,54.92861086,168.77,168.76,0.74]
[1754511851318,54.92861086,168.77,168.76,0.06]
[1754511855019,50.99355352,168.77,168.76,0.06]
[1754511855225,54.92861086,168.77,168.76,0.74]
[1754511855693,54.92861086,168.77,168.76,0.06]
[1754511856109,54.92861086,168.77,168.76,0.74]
[1754511857823,50.99355352,168.77,168.76,0.74]
[1754511858002,54.92861086,168.77,168.76,0.74]
[1754511858521,54.95861086,168.77,168.76,0.74]
[1754511858718,7.95338719,168.77,168.76,0.74]
[1754511859220,49.03338719,168.77,168.76,0.74]
[1754511861504,49.03338719,168.77,168.76,6.66557478]
[1754511861718,45.09832985,168.77,168.76,6.66557478]
[1754511862709,4.01832985,168.77,168.76,6.66557478]
[1754511863594,4.01832985,168.77,168.76,0.74]
[1754511863809,7.95338719,168.77,168.76,0.06]
[1754511864623,14.59861086,168.77,168.76,0.06]
[1754511870023,9.94355352,168.77,168.76,0.06]
[1754511870330,13.87861086,168.77,168.76,0.06]
[1754511872543,14.59861086,168.77,168.76,0.06]
[1754511872725,19.58402317,168.77,168.76,0.06]
[1754511873538,45.58402317,168.77,168.76,0.06]
[1754511873730,26.0,168.75,168.74,0.06]
[1754511873935,74.98338719,168.75,168.74,0.06]
[1754511874227,81.62931311,168.75,168.74,0.06]
[1754511875026,80.90931311,168.75,168.74,0.06]
[1754511875527,80.91880666,168.75,168.74,0.06]
[1754511876937,76.98374932,168.75,168.74,0.06]
[1754511877134,80.91880666,168.75,168.74,0.75]
[1754511877530,80.91880666,168.75,168.74,0.06]
[1754511880360,81.63880666,168.75,168.74,0.06]
[1754511881622,40.57880666,168.75,168.74,0.06]
[1754511881818,81.63880666,168.75,168.74,0.06]
[1754511882037,80.91880666,168.75,168.74,0.06]
[1754511882547,80.91880666,168.75,168.74,0.75]
[1754511885124,76.98374932,168.75,168.74,0.75]
[1754511885325,80.91880666,168.75,168.74,0.75]
[1754511885624,76.98314139,168.75,168.74,0.75]
[1754511885829,80.91819873,168.75,168.74,0.75]
[1754511889038,81.61819873,168.75,168.74,0.06]
[1754511889237,86.61471807,168.75,168.74,0.06]
[1754511890360,82.67966073,168.75,168.74,0.06]
[1754511890661,86.61471807,168.75,168.74,0.06]
[1754511891256,81.61819873,168.75,168.74,0.06]
[1754511892141,80.91819873,168.75,168.74,0.06]
[1754511894561,76.98314139,168.75,168.74,0.06]
[1754511894764,80.91819873,168.75,168.74,0.06]
[1754511899069,77.68314139,168.75,168.74,0.06]
[1754511899270,81.61819873,168.75,168.74,0.06]
[1754511899763,96.7244143,168.75,168.74,0.06]
[1754511899972,96.7244143,168.75,168.73,0.06]
[1754511900170,12.92784377,168.74,168.73,0.06]
[1754511900464,13.62784377,168.74,168.73,0.06]
[1754511900667,19.55412088,168.74,168.73,0.06]
[1754511903168,18.85412088,168.74,168.73,0.06]
[1754511903355,13.85854992,168.74,168.73,0.06]
[1754511904173,18.85412088,168.74,168.73,0.06]
[1754511904490,13.85854992,168.74,168.73,0.06]
[1754511905168,18.85412088,168.74,168.73,0.06]
[1754511905467,13.85854992,168.74,168.73,0.06]
[1754511905864,54.91854992,168.74,168.73,0.78]
[1754511907457,54.91854992,168.74,168.73,0.06]
[1754511909654,48.99227281,168.74,168.73,0.78]
[1754511910361,7.93227281,168.74,168.73,0.78]
[1754511910562,48.99227281,168.74,168.73,0.78]
[1754511910874,45.05721547,168.74,168.73,0.78]
[1754511911072,48.99227281,168.74,168.73,0.78]
[1754511916374,3.99721547,168.74,168.73,6.70662834]
[1754511916575,0.03,168.77,168.73,10.64168568]
[1754511916883,3.99807815,168.76,168.74,1.00432314]
[1754511917099,0.03,168.77,168.75,0.72]
[1754511917399,3.99828815,168.76,168.75,6.93024906]
[1754511917567,0.03,168.77,168.76,0.28432314]
[1754511917768,0.03,168.77,168.76,1.00432314]
[1754511917976,0.03,168.77,168.76,20.04559605]
[1754511918687,0.03,168.77,168.76,22.25919197]
[1754511919068,0.03,168.77,168.76,28.18476675]
[1754511919766,0.03,168.77,168.76,12.79422804]
[1754511919957,0.03,168.77,168.76,6.64557478]
[1754511922283,0.03,168.77,168.76,12.79422804]
[1754511924882,0.03,168.77,168.76,5.92557478]
[1754511925093,0.03,168.77,168.76,12.77422804]
[1754511938788,0.03,168.77,168.76,10.56155012]
[1754511941409,0.36,168.77,168.74,9.86225245]
[1754511941574,0.36,168.77,168.74,10.56225245]
[1754511942018,0.03,168.77,168.74,10.56225245]
[1754511942171,0.03,168.77,168.74,9.86225245]
[1754511942514,0.03,168.77,168.75,0.7]
[1754511942680,0.03,168.77,168.76,5.92557478]
[1754511943296,0.03,168.77,168.76,6.62557478]
[1754511946203,0.03,168.77,168.76,10.56155012]
[1754511949415,0.03,168.77,168.76,5.92557478]
[1754511950413,0.03,168.77,168.76,6.58557478]
[1754511951305,0.03,168.77,168.76,10.52155012]
[1754511952989,0.03,168.77,168.76,10.80587326]
[1754511956713,0.03,168.77,168.76,25.91208883]
[1754511956914,0.03,168.77,168.76,66.99208883]
[1754511957122,0.03,168.77,168.76,69.36576483]
[1754511958117,0.03,168.78,168.77,15.10621557]
[1754511958317,0.03,168.78,168.77,19.70219091]
[1754511960417,0.03,168.78,168.77,25.62741458]
[1754511961931,0.03,168.81,168.79,26.0]
[1754511961932,1e-08,168.81,168.79,26.0]
[1754511962135,0.03,168.83,168.81,0.28432314]
[1754511962295,0.03,168.83,168.82,25.24998283]
[1754511962620,0.03,168.83,168.82,25.90998283]
[1754511962799,0.03,168.83,168.82,28.11719035]
[1754511963000,0.03,168.83,168.82,30.49002135]
[1754511965702,0.03,168.83,168.82,24.34683849]
[1754511965901,0.74,168.83,168.82,8.29629978]
[1754511966511,0.74,168.83,168.82,5.92346878]
[1754511967221,6.88318286,168.83,168.8,5.92406546]
[1754511967422,0.74,168.83,168.8,5.92406546]
[1754511967615,0.71,168.82,168.8,5.92406546]
[1754511969607,0.71,168.81,168.8,5.92406546]
[1754511969802,0.71,168.82,168.8,5.92406546]
[1754511971102,0.71,168.81,168.8,5.92406546]
[1754511972727,0.71,168.82,168.8,5.92406546]
[1754511973418,0.71,168.81,168.79,47.04439188]
[1754511973822,0.71,168.8,168.79,47.04439188]
[1754511974016,0.71,168.8,168.78,6.20910372]
[1754511974340,6.14318286,168.82,168.77,47.04512209]
[1754511974341,0.71,168.79,168.77,47.04512209]
[1754511974834,3.98438519,168.82,168.77,47.04512209]
[1754511975003,6.85318286,168.81,168.77,47.70512209]
[1754511977130,6.85318286,168.81,168.78,0.66]
[1754511978035,6.85318286,168.81,168.77,47.70512209]
[1754511979632,6.14318286,168.79,168.75,6.853182]
[1754511979837,6.80318286,168.78,168.74,0.06]
[1754511980010,6.14318286,168.78,168.75,5.9258269]
[1754511980210,6.14318286,168.79,168.75,5.9258269]
[1754511980425,6.80318286,168.79,168.75,6.6458269]
[1754511981635,41.12,168.8,168.76,6.86318286]
[1754511981813,41.12,168.8,168.77,0.72]
[1754511982420,41.78,168.8,168.77,0.72]
[1754511983244,41.78,168.8,168.77,6.64488856]
[1754511983420,41.78,168.8,168.77,5.92488856]
[1754511984224,47.26318286,168.8,168.75,5.92592592]
[1754511984547,0.66,168.79,168.75,12.06910878]
[1754511984740,41.12,168.8,168.77,6.14318286]
[1754511984929,152.70318286,168.82,168.77,6.14318286]
[1754511985132,152.70318286,168.82,168.78,0.72]
[1754511985521,0.66,168.81,168.78,0.72]
[1754511985721,0.66,168.81,168.79,5.92452159]
[1754511986142,152.70318286,168.82,168.79,5.92452159]
[1754511987351,3.98612022,168.81,168.79,5.92452159]
[1754511988750,3.98612022,168.81,168.8,0.72]
[1754511989041,145.9,168.82,168.8,0.72]
[1754511989343,145.9,168.82,168.8,6.86318286]
[1754511989555,145.93,168.82,168.8,6.86318286]
[1754511989917,145.93,168.82,168.81,5.92381967]
[1754511990117,149.91666472,168.82,168.81,5.92381967]
[1754511990361,145.93,168.82,168.81,5.92381967]
[1754511991252,145.93,168.82,168.78,21.02137728]
[1754511991433,145.93,168.82,168.81,0.72]
[1754511991949,0.03,168.82,168.81,0.72]
[1754511993045,0.03,168.82,168.79,0.72]
[1754511993250,0.03,168.82,168.81,5.92381967]
[1754511998136,0.03,168.82,168.8,5.92417061]
[1754511998326,0.03,168.82,168.8,6.64417061]
[1754512001546,0.03,168.82,168.81,6.64381967]
[1754512003237,0.03,168.82,168.81,38.78700253]
[1754512004460,0.03,168.82,168.81,12.78700253]
[1754512005965,0.03,168.82,168.81,6.64381967]
[1754512007342,0.03,168.82,168.81,12.78700253]
[1754512010148,0.03,168.82,168.81,6.64381967]
[1754512010468,0.03,168.82,168.81,12.78700253]
[1754512010651,0.03,168.82,168.81,12.84700253]
[1754512018671,0.03,168.82,168.81,10.6371198]
[1754512034274,0.03,168.82,168.81,50.9571198]
[1754512035096,0.03,168.82,168.81,5.98381967]
[1754512037671,0.03,168.82,168.81,10.6271198]
[1754512037996,0.03,168.82,168.81,6.69381967]
[1754512038299,0.03,168.82,168.81,9.9171198]
[1754512038775,0.03,168.82,168.81,10.6371198]
[1754512039507,0.03,168.82,168.81,6.70381967]
[1754512039873,0.03,168.82,168.81,5.98381967]
[1754512040071,0.69,168.82,168.81,5.98381967]
[1754512043006,0.03,168.82,168.81,5.98381967]
[1754512046404,4.02895384,168.82,168.81,5.98381967]
[1754512051175,4.68895384,168.82,168.81,5.98381967]
[1754512051694,4.02895384,168.82,168.81,5.98381967]
[1754512056380,8.62225397,168.82,168.81,0.06]
[1754512057700,14.54572275,168.82,168.81,0.06]
[1754512057893,55.60572275,168.82,168.81,0.06]
[1754512058094,81.60572275,168.82,168.81,0.06]
[1754512059001,26.0,168.8,168.79,0.06]
[1754512059200,49.66545449,168.8,168.79,0.06]
[1754512059410,50.32545449,168.8,168.79,0.06]
[1754512059789,34.59225397,168.8,168.79,0.06]
[1754512060690,40.51642458,168.8,168.79,0.06]
[1754512063807,56.2496251,168.8,168.79,0.06]
[1754512064316,56.2496251,168.8,168.77,0.06]
[1754512064317,3.93330013,168.78,168.77,0.06]
[1754512064487,48.99225397,168.78,168.77,0.06]
[1754512065113,55.57712658,168.78,168.77,0.06]
[1754512070023,48.99225397,168.78,168.77,0.06]
[1754512072724,81.61712658,168.78,168.77,0.06]
[1754512076232,26.0,168.76,168.75,0.06]
[1754512076434,71.29762327,168.76,168.75,0.06]
[1754512076637,71.99762327,168.76,168.75,0.06]
[1754512076805,75.97386852,168.76,168.75,0.06]
[1754512077821,81.8994433,168.76,168.75,0.06]
[1754512079429,77.92319805,168.76,168.75,0.06]
[1754512079648,81.89795086,168.76,168.75,0.06]
[1754512080615,80.91362772,168.76,168.75,0.06]
[1754512088036,81.61362772,168.76,168.75,0.06]
[1754512089326,80.91362772,168.76,168.75,0.06]
[1754512090539,74.98805294,168.76,168.75,0.75]
[1754512090855,45.01330013,168.76,168.75,0.75]
[1754512091016,26.0,168.78,168.75,0.75]
[1754512091017,3.93330013,168.77,168.75,0.75]
[1754512091218,45.01330013,168.77,168.75,0.75]
[1754512091822,3.93330013,168.76,168.75,0.75]
[1754512092033,3.93330013,168.76,168.75,0.06]
[1754512092549,3.93330013,168.76,168.75,0.75]
[1754512097247,41.11,168.77,168.75,0.75]
[1754512097431,3.93330013,168.76,168.75,6.67588179]
[1754512099453,0.03,168.77,168.75,6.67588179]
[1754512099689,4.01636715,168.77,168.76,0.66]
[1754512100733,7.94966728,168.77,168.76,0.66]
[1754512103941,7.94966728,168.77,168.76,6.58557478]
[1754512106356,7.94966728,168.77,168.76,0.66]
[1754512107177,4.01636715,168.77,168.76,0.66]
[1754512107548,4.01636715,168.77,168.76,4.59330013]
[1754512108349,0.03,168.77,168.76,10.51887491]
[1754512110351,0.03,168.77,168.76,6.58557478]
[1754512115473,0.03,168.77,168.76,10.51887491]
[1754512118452,0.03,168.77,168.76,10.57887491]
[1754512118867,0.03,168.77,168.76,6.64557478]
[1754512119265,0.03,168.77,168.76,10.57887491]
[1754512130900,0.03,168.77,168.76,9.91887491]
[1754512131085,0.03,168.77,168.76,10.60887491]
[1754512138702,0.03,168.77,168.76,6.67557478]
[1754512138894,0.03,168.77,168.76,5.98557478]
[1754512140483,0.03,168.77,168.76,6.67557478]
[1754512141811,0.03,168.77,168.76,10.60887491]
[1754512143000,0.03,168.77,168.76,9.91887491]
[1754512143179,0.03,168.77,168.76,5.98557478]
[1754512144899,0.03,168.77,168.76,6.67557478]
[1754512147002,0.03,168.77,168.76,5.98557478]
[1754512147504,0.03,168.77,168.76,6.67557478]
[1754512149502,4.02780555,168.77,168.76,6.67557478]
[1754512149796,4.02780555,168.77,168.76,5.98557478]
[1754512150198,4.02780555,168.77,168.76,5.96057478]
[1754512152303,4.02780555,168.77,168.76,6.65057478]
[1754512152709,4.02780555,168.77,168.76,5.96057478]
[1754512157020,8.63110568,168.77,168.76,0.06]
[1754512160923,14.55632935,168.77,168.76,0.06]
[1754512161829,19.55010253,168.77,168.76,0.06]
[1754512162330,34.94064124,168.77,168.76,0.06]
[1754512162734,25.94906251,168.77,168.76,0.06]
[1754512162910,26.0,168.76,168.75,0.06]
[1754512163222,54.64182567,168.76,168.75,0.06]
[1754512163409,59.90740045,168.76,168.75,0.06]
[1754512163597,60.56740045,168.76,168.75,0.06]
[1754512164333,55.57369406,168.76,168.75,0.06]
[1754512166616,70.96423277,168.76,168.75,0.06]
[1754512166932,0.28432314,168.75,168.74,0.06]
[1754512167255,8.87244242,168.75,168.74,0.06]
[1754512167808,14.79836834,168.75,168.74,0.06]
[1754512175542,14.79836834,168.75,168.73,0.06]
[1754512175730,49.66811928,168.74,168.73,0.06]
[1754512177321,55.59439639,168.74,168.73,0.06]
[1754512182735,55.87871953,168.74,168.73,0.06]
[1754512183053,70.9849351,168.74,168.73,0.06]
[1754512183249,73.3607251,168.74,168.73,0.06]
[1754512183752,26.28432314,168.7,168.69,0.06]
[1754512183957,0.28432314,168.69,168.67,0.06]
[1754512184133,45.07481915,168.68,168.67,0.06]
[1754512184845,45.73481915,168.68,168.67,0.06]
[1754512185033,51.66320425,168.68,168.67,0.06]
[1754512186970,56.3581431,168.68,168.67,0.06]
[1754512189366,60.29144323,168.68,168.67,0.06]
[1754512189566,59.63144323,168.68,168.67,0.06]
[1754512190675,59.63144323,168.68,168.67,0.71]
[1754512190872,55.63662408,168.68,168.67,0.71]
[1754512191168,59.60810547,168.68,168.67,0.71]
[1754512196870,59.60810547,168.68,168.67,0.06]
[1754512199984,55.67480534,168.68,168.67,0.06]
[1754512200189,59.60810547,168.68,168.67,0.06]
[1754512200885,60.60242861,168.68,168.67,0.06]
[1754512201180,62.97892461,168.68,168.67,0.06]
[1754512202802,62.97892461,168.68,168.64,0.06]
[1754512202803,26.0,168.65,168.64,0.06]
[1754512202965,74.98894148,168.65,168.64,0.06]
[1754512204400,74.98894148,168.65,168.64,0.71]
[1754512204693,76.98508101,168.65,168.64,0.71]
[1754512205000,80.91838114,168.65,168.64,0.71]
[1754512206792,29.97564135,168.65,168.64,0.71]
[1754512206994,75.00894148,168.65,168.64,0.71]
[1754512207465,149.83330013,168.67,168.64,6.63979127]
[1754512207670,41.1,168.66,168.64,6.63979127]
[1754512207882,190.93330013,168.67,168.65,0.65]
[1754512211603,145.9,168.67,168.65,6.57928921]
[1754512211906,187.0,168.67,168.65,6.57928921]
[1754512212204,187.0,168.67,168.66,0.65]
[1754512212410,190.98105265,168.67,168.66,0.65]
[1754512212703,194.91435278,168.67,168.66,0.65]
[1754512213204,195.62435278,168.67,168.64,0.06]
[1754512213516,3.93330013,168.65,168.64,0.06]
[1754512213813,45.03330013,168.65,168.64,0.71]
[1754512213980,45.03330013,168.65,168.64,0.06]
[1754512214319,145.9,168.67,168.64,0.06]
[1754512214606,45.03330013,168.66,168.64,0.71]
[1754512215394,41.1,168.66,168.64,0.71]
[1754512215706,45.03330013,168.66,168.64,0.71]
[1754512216804,41.1,168.66,168.65,0.65]
[1754512217005,45.08376026,168.66,168.65,0.65]
[1754512217197,41.1,168.66,168.65,0.65]
[1754512217399,45.08430422,168.66,168.65,0.65]
[1754512217909,41.1,168.66,168.65,0.65]
[1754512220894,41.1,168.66,168.64,0.06]
[1754512220895,49.01988895,168.66,168.64,0.06]
[1754512221094,3.93330013,168.65,168.64,0.06]
[1754512221313,8.58068021,168.65,168.64,0.06]
[1754512222407,14.51011987,168.65,168.64,0.06]
[1754512224229,19.47967156,168.65,168.64,0.06]
[1754512225114,19.47967156,168.65,168.64,1e-08]
[1754512225115,34.87021027,168.65,168.64,1e-08]
[1754512225319,15.39053871,168.64,168.63,0.2]
[1754512225627,76.03147118,168.64,168.63,0.2]
[1754512226298,3.93330013,168.63,168.62,0.06]
[1754512226503,13.5711412,168.63,168.62,0.06]
[1754512226703,15.80539578,168.63,168.62,0.06]
[1754512227120,31.19593449,168.63,168.62,0.06]
[1754512227337,26.2054735,168.63,168.62,0.06]
[1754512227505,32.13561641,168.63,168.62,0.06]
[1754512230821,27.48858802,168.62,168.61,0.2]
[1754512231007,73.2759681,168.62,168.61,0.2]
[1754512232029,62.21469026,168.62,168.61,0.9]
[1754512232230,62.23469026,168.62,168.61,0.9]
[1754512232430,56.30419566,168.62,168.61,0.9]
[1754512232730,202.20419566,168.62,168.61,0.9]
[1754512234434,202.20419566,168.62,168.61,0.2]
[1754512234435,208.79469026,168.62,168.61,0.2]
[1754512238536,203.80542939,168.62,168.61,0.2]
[1754512238738,57.90542939,168.62,168.61,0.2]
[1754512238917,57.24542939,168.62,168.61,0.2]
[1754512239236,57.90542939,168.62,168.61,0.2]
[1754512239422,57.24542939,168.62,168.61,0.2]
[1754512240145,57.90542939,168.62,168.61,0.2]
[1754512242514,57.24542939,168.62,168.61,0.2]
[1754512246826,55.02471755,168.62,168.61,0.2]
[1754512250941,55.05471755,168.62,168.61,0.2]
[1754512258242,76.15451713,168.62,168.61,0.2]
[1754512258560,0.28432314,168.61,168.6,0.06]
[1754512258725,29.70950916,168.61,168.6,0.06]
[1754512259331,19.85298401,168.61,168.6,0.06]
[1754512260537,75.37919958,168.61,168.6,0.06]
[1754512260736,75.37919958,168.61,168.6,0.73]
[1754512260942,59.98866087,168.61,168.6,0.73]
[1754512262149,59.98866087,168.61,168.6,0.06]
[1754512263555,60.00100075,168.61,168.6,0.06]
[1754512264434,55.01027211,168.61,168.6,0.06]
[1754512264834,55.01027211,168.61,168.6,0.73]
[1754512265861,13.87027211,168.61,168.6,0.73]
[1754512266060,55.01027211,168.61,168.6,0.73]
[1754512266426,55.01027211,168.61,168.6,0.06]
[1754512267259,51.06342924,168.61,168.6,0.06]
[1754512267461,13.87027211,168.61,168.6,0.06]
[1754512267666,55.01027211,168.61,168.6,0.06]
[1754512268674,61.65774015,168.61,168.59,0.87]
[1754512268844,149.89258291,168.6,168.59,0.87]
[1754512269752,159.77062388,168.6,168.59,0.87]
[1754512270054,200.91062388,168.6,168.59,0.87]
[1754512270454,153.83942578,168.6,168.59,0.87]
[1754512270658,191.03258291,168.6,168.59,0.87]
[1754512270845,3.27258291,168.6,168.59,6.80154991]
[1754512276362,3.27258291,168.6,168.59,10.74839278]
[1754512277341,3.27258291,168.6,168.59,6.80154991]
[1754512277556,41.17,168.61,168.59,6.80154991]
[1754512277747,41.17,168.61,168.59,6.13154991]
[1754512277938,41.17,168.61,168.6,0.67]
[1754512279462,0.03,168.61,168.6,0.67]
[1754512279647,41.17,168.61,168.6,0.67]
[1754512279848,0.03,168.61,168.6,0.67]
[1754512280161,0.03,168.61,168.6,6.6011981]
[1754512282974,4.02784688,168.61,168.6,6.6011981]
[1754512285841,4.02784688,168.61,168.6,10.54804097]
[1754512286249,0.03,168.61,168.6,10.54804097]
[1754512291576,0.03,168.61,168.6,51.93857968]
[1754512293548,0.03,168.61,168.6,47.99173681]
[1754512293879,0.03,168.61,168.6,51.93857968]
[1754512295466,0.03,168.61,168.6,25.93857968]
[1754512298370,0.03,168.61,168.6,25.26857968]
[1754512298876,0.03,168.61,168.6,25.98857968]
[1754512299764,0.03,168.61,168.6,5.9311981]
[1754512299984,0.03,168.61,168.6,10.59804097]
[1754512300285,0.03,168.61,168.6,10.88236411]
[1754512300591,0.03,168.61,168.6,41.77595116]
[1754512300957,0.03,168.61,168.6,82.93595116]
[1754512301773,0.03,168.62,168.6,82.93595116]
[1754512301774,0.03,168.62,168.61,15.39053871]
[1754512301958,0.03,168.62,168.61,25.98822791]
[1754512302162,146.56,168.67,168.61,40.81534373]
[1754512302482,0.69,168.69,168.66,3.94684287]
[1754512302779,0.69,168.69,168.68,3.94684287]
[1754512304092,0.69,168.69,168.68,9.87522797]
[1754512304557,0.69,168.69,168.68,5.9283851]
[1754512307786,0.69,168.69,168.67,9.875482]
[1754512309178,0.66,168.68,168.67,9.875482]
[1754512311068,0.03,168.69,168.67,9.875482]
[1754512311266,0.69,168.69,168.67,9.875482]
[1754512311466,0.03,168.69,168.68,4.62684287]
[1754512311688,0.03,168.69,168.68,20.01738158]
[1754512312005,0.03,168.69,168.68,25.94576668]
[1754512312671,0.03,168.69,168.68,28.15209421]
[1754512320204,1e-08,168.71,168.68,49.12622737]
[1754512320371,1e-08,168.71,168.7,53.69687951]
[1754512320792,1e-08,168.71,168.7,54.37687951]
[1754512321096,1e-08,168.71,168.7,56.75111851]
[1754512321512,1e-08,168.71,168.7,54.37687951]
[1754512322186,1e-08,168.71,168.7,60.30456178]
[1754512326595,1e-08,168.71,168.7,62.67880178]
[1754512327604,0.03,168.75,168.7,107.13641885]
[1754512327808,0.03,168.75,168.74,6.1531704]
[1754512328108,0.03,168.75,168.74,47.2931704]
[1754512331584,0.03,168.75,168.74,53.21944751]
[1754512332714,0.03,168.75,168.74,51.00213071]
[1754512333318,0.69,168.75,168.74,51.00213071]
[1754512334510,0.03,168.75,168.74,51.00213071]
[1754512334711,0.03,168.75,168.74,67.07266942]
[1754512335223,0.03,168.75,168.74,66.39266942]
[1754512336239,0.03,168.75,168.74,67.07266942]
[1754512338000,1e-08,168.75,168.74,67.07266942]
[1754512338621,1e-08,168.75,168.74,63.13681582]
[1754512338797,1e-08,168.75,168.74,69.28505499]
[1754512340128,1e-08,168.75,168.74,68.60505499]
[1754512340914,1e-08,168.75,168.74,68.58505499]
[1754512341926,1e-08,168.75,168.74,69.26505499]
[1754512343614,1e-08,168.75,168.74,68.58505499]
[1754512350412,1e-08,168.75,168.74,69.26505499]
[1754512353940,1e-08,168.75,168.74,68.58505499]
[1754512355339,1e-08,168.75,168.74,69.26505499]
[1754512360021,1e-08,168.77,168.74,84.08074777]
[1754512360222,1e-08,168.77,168.76,21.53877788]
[1754512360527,1e-08,168.77,168.76,62.61877788]
[1754512360840,1e-08,168.77,168.76,60.40522706]
[1754512361043,0.69000001,168.77,168.76,60.40522706]
[1754512361242,1e-08,168.77,168.76,61.08522706]
[1754512361946,1e-08,168.77,168.76,67.01080184]
[1754512365443,0.69000001,168.77,168.76,66.33080184]
[1754512369740,0.69000001,168.77,168.76,62.39611349]
[1754512369959,0.69000001,168.77,168.76,66.33080184]
[1754512370133,0.69000001,168.77,168.76,5.92557478]
[1754512370327,0.69000001,168.77,168.76,47.00557478]
[1754512370848,0.69000001,168.77,168.76,5.92557478]
[1754512371857,4.68528178,168.77,168.76,5.92557478]
[1754512372238,4.68528178,168.77,168.75,5.92582402]
[1754512372452,0.7,168.76,168.75,5.92582402]
[1754512372771,4.63468835,168.76,168.74,0.06]
[1754512372934,7.93047863,168.75,168.74,0.06]
[1754512373253,8.63047863,168.75,168.74,0.06]
[1754512373854,4.69579028,168.75,168.74,0.06]
[1754512375933,8.63047863,168.75,168.74,0.06]
[1754512377062,4.69579028,168.75,168.74,0.06]
[1754512381464,8.63047863,168.75,168.74,0.06]
[1754512381764,14.55640455,168.75,168.74,0.06]
[1754512381950,14.55640455,168.75,168.72,0.06]
[1754512382262,3.93468835,168.73,168.72,0.06]
[1754512382485,7.93047863,168.73,168.72,0.06]
[1754512382637,8.63047863,168.73,168.72,0.06]
[1754512384547,14.55710697,168.73,168.72,0.06]
[1754512384744,10.8532895,168.73,168.72,0.06]
[1754512387544,6.85749922,168.73,168.72,0.06]
[1754512387747,10.8532895,168.73,168.72,0.06]
[1754512387965,6.85749922,168.73,168.72,0.06]
[1754512388168,10.8532895,168.73,168.72,0.06]
[1754512388463,6.85749922,168.73,168.72,0.06]
[1754512388653,10.8532895,168.73,168.72,0.06]
[1754512389241,12.78412756,168.73,168.72,0.06]
[1754512389553,16.77991784,168.73,168.72,0.06]
[1754512390878,10.8532895,168.73,168.72,0.06]
[1754512391868,3.99579028,168.73,168.72,0.06]
[1754512392052,6.15749922,168.73,168.72,0.06]
[1754512392979,6.85749922,168.73,168.72,0.06]
[1754512394548,10.83597333,168.73,168.72,0.06]